fUST/lending_fUST_20250810
["ID","MTS","AMOUNT","RATE_DAILY","PERIOD"]
[378173834,1754763047855,-460.0,0.00022359,2]
[378173835,1754763047864,-460.0,0.00022359,2]
[378173836,1754763047873,-821.13,0.00022359,2]
[378173837,1754763047882,-1182.0,0.0002236,2]
[378173838,1754763047892,-881.07,0.0002236,2]
[378173839,1754763047902,-354.23,0.00022361,2]
[378173840,1754763047911,-1640.42,0.00022361,2]
[378173841,1754763047921,-221.82,0.00022361,2]
[378173842,1754763047930,-268.34,0.00022361,2]
[378173843,1754763047940,-460.0,0.00022361,2]
[378173844,1754763047949,-460.0,0.00022361,2]
[378173845,1754763047958,-460.0,0.00022361,2]
[378173846,1754763047967,-460.0,0.00022361,2]
[378173847,1754763047976,-460.0,0.00022361,2]
[378173848,1754763047985,-460.0,0.00022361,2]
[378173849,1754763047994,-585.05,0.00022361,2]
[378173850,1754763048003,-460.0,0.00022362,2]
[378173851,1754763048012,-460.0,0.00022362,2]
[378173852,1754763048021,-460.0,0.00022362,2]
[378173853,1754763048031,-460.0,0.00022362,2]
[378173854,1754763048040,-921.51,0.00022362,2]
[378173855,1754763048049,-2422.38,0.00022362,2]
[378173856,1754763048059,-460.0,0.00022362,2]
[378173857,1754763048069,-745.73,0.00022362,2]
[378173858,1754763048078,-688.25,0.00022362,2]
[378173859,1754763048087,-790.22,0.00022362,2]
[378173860,1754763048096,-751.83,0.00022362,2]
[378173861,1754763048106,-460.0,0.00022362,2]
[378173862,1754763048115,-529.69,0.00022362,2]
[378173863,1754763048127,-475.28,0.00022363,2]
[378173864,1754763048137,-641.9,0.00022363,2]
[378173865,1754763048146,-460.62007311,0.00022363,2]
[378173866,1754763048156,-266.3,0.00022363,2]
[378173867,1754763048166,-460.0,0.00022363,2]
[378173868,1754763048175,-460.0,0.00022363,2]
[378173869,1754763048185,-663.54,0.00022363,2]
[378173870,1754763048195,-984.81,0.00022363,2]
[378173871,1754763048204,-641.9,0.00022364,2]
[378173872,1754763048214,-641.9,0.00022364,2]
[378173873,1754763048224,-641.9,0.00022364,2]
[378173874,1754763048233,-641.9,0.00022364,2]
[378173875,1754763048243,-641.9,0.00022364,2]
[378173876,1754763048252,-480.16,0.00022364,2]
[378173877,1754763048261,-1640.42,0.00022364,2]
[378173878,1754763048271,-1640.42,0.00022364,2]
[378173879,1754763048281,-1640.42,0.00022364,2]
[378173880,1754763048291,-1640.42,0.00022364,2]
[378173881,1754763048300,-1640.42,0.00022364,2]
[378173882,1754763048313,-2112.37410056,0.00022399,2]
[378173883,1754763048323,-160.0,0.00022523,2]
[378173884,1754763048333,-160.0,0.00022523,2]
[378173885,1754763048342,-160.0,0.00022523,2]
[378173886,1754763048352,-461.55179734,0.00022524,2]
[378173887,1754763048361,-216.61183532,0.00022524,2]
[378173888,1754763048370,-231.92402426,0.00022524,2]
[378173889,1754763048380,-312.16666667,0.00022524,2]
[378173890,1754763048390,-160.0,0.00022524,2]
[378173891,1754763048400,-527.77735381,0.00022524,2]
[378173892,1754763048409,-12666.14847857,0.00022524,2]
[378173893,1754763048419,-215.40758176,0.00022524,2]
[378173894,1754763048429,-842.95011917,0.00022524,2]
[378173895,1754763048438,-606.02388055,0.00022553,2]
[378173896,1754763048448,-590.28,0.00022632,2]
[378173897,1754763048458,-491.78,0.00022633,2]
[378173898,1754763048467,-343.21574534,0.00022633,2]
[378173899,1754763048477,-1055.33,0.00022633,2]
[378173900,1754763048486,-460.0,0.00022633,2]
[378173901,1754763048495,-460.0,0.00022633,2]
[378173902,1754763048505,-460.0,0.00022633,2]
[378173903,1754763048515,-821.13,0.00022633,2]
[378173904,1754763048524,-1182.0,0.00022634,2]
[378173905,1754763048533,-881.07,0.00022634,2]
[378173906,1754763048542,-460.0,0.00022635,2]
[378173907,1754763048551,-460.0,0.00022635,2]
[378173908,1754763048561,-460.0,0.00022635,2]
[378173909,1754763048570,-460.0,0.00022635,2]
[378173910,1754763048580,-528.74,0.00022635,2]
[378173911,1754763048591,-460.0,0.00022635,2]
[378173912,1754763048600,-585.05,0.00022635,2]
[378173913,1754763048610,-460.0,0.00022636,2]
[378173914,1754763048619,-460.0,0.00022636,2]
[378173915,1754763048630,-460.0,0.00022636,2]
[378173916,1754763048639,-460.0,0.00022636,2]
[378173917,1754763048649,-921.51,0.00022636,2]
[378173918,1754763048661,-2422.38,0.00022636,2]
[378173919,1754763048671,-460.0,0.00022636,2]
[378173920,1754763048681,-745.73,0.00022636,2]
[378173921,1754763048690,-688.25,0.00022636,2]
[378173922,1754763048700,-790.22,0.00022636,2]
[378173923,1754763048709,-751.83,0.00022636,2]
[378173924,1754763048719,-560.12922238,0.00022636,2]
[378173925,1754763048729,-529.69,0.00022636,2]
[378173926,1754763048740,-460.0,0.00022637,2]
[378173927,1754763048749,-460.0,0.00022637,2]
[378173928,1754763048758,-663.54,0.00022637,2]
[378173929,1754763048768,-984.81,0.00022637,2]
[378173930,1754763048778,-480.16,0.00022638,2]
[378173931,1754763048788,-151.234569,0.00022672,10]
[378173932,1754763048797,-160.0,0.00022706,2]
[378173933,1754763048807,-160.01729465,0.00022708,2]
[378173934,1754763048817,-151.0,0.0002271,2]
[378173935,1754763048826,-151.0,0.0002271,2]
[378173936,1754763048836,-151.0,0.0002271,2]
[378173937,1754763048846,-151.0,0.0002271,2]
[378173938,1754763048856,-500.0,0.0002271,2]
[378173939,1754763048867,-151.0,0.0002271,2]
[378173940,1754763048877,-500.0,0.0002271,2]
[378173941,1754763048887,-151.0,0.0002271,2]
[378173942,1754763048898,-151.0,0.0002271,2]
[378173943,1754763048908,-151.0,0.0002271,2]
[378173944,1754763048917,-500.0,0.0002271,2]
[378173945,1754763048927,-151.0,0.0002271,2]
[378173946,1754763048936,-151.0,0.0002271,2]
[378173947,1754763048946,-151.0,0.0002271,2]
[378173948,1754763048955,-500.0,0.0002271,2]
[378173949,1754763048971,-151.0,0.0002271,2]
[378173950,1754763048981,-151.0,0.0002271,2]
[378173951,1754763048990,-151.0,0.0002271,2]
[378173952,1754763049000,-500.0,0.0002271,2]
[378173953,1754763049009,-151.0,0.0002271,2]
[378173954,1754763049019,-151.0,0.0002271,2]
[378173955,1754763049029,-151.0,0.0002271,2]
[378173956,1754763049038,-2183.31810187,0.0002271,2]
[378173957,1754763049048,-300.0,0.0002271,2]
[378173958,1754763049058,-151.0,0.0002271,2]
[378173959,1754763049067,-400.0,0.0002271,2]
[378173960,1754763049077,-151.0,0.0002271,2]
[378173961,1754763049087,-151.0,0.0002271,2]
[378173962,1754763049097,-151.0,0.0002271,2]
[378173963,1754763049107,-300.0,0.0002271,2]
[378173964,1754763049116,-151.0,0.0002271,2]
[378173965,1754763049126,-151.0,0.0002271,2]
[378173966,1754763049136,-151.0,0.0002271,2]
[378173967,1754763049146,-300.0,0.0002271,2]
[378173968,1754763049155,-151.0,0.0002271,2]
[378173969,1754763049167,-263.81787871,0.0002271,2]
[378173970,1754763049178,-151.0,0.0002271,2]
[378173971,1754763049190,-300.0,0.0002271,2]
[378173972,1754763049204,-151.0,0.0002271,2]
[378173973,1754763049214,-151.0,0.0002271,2]
[378173974,1754763049226,-151.0,0.0002271,2]
[378173975,1754763049236,-300.0,0.0002271,2]
[378173976,1754763049245,-151.0,0.0002271,2]
[378173977,1754763049255,-300.0,0.0002271,2]
[378173978,1754763049264,-151.0,0.0002271,2]
[378173979,1754763049274,-300.0,0.0002271,2]
[378173980,1754763049283,-151.0,0.0002271,2]
[378173981,1754763049292,-151.0,0.0002271,2]
[378173982,1754763049302,-151.0,0.0002271,2]
[378173983,1754763049315,-250.0,0.0002271,2]
[378173984,1754763049325,-250.0,0.0002271,2]
[378173985,1754763049335,-250.0,0.0002271,2]
[378173986,1754763049345,-250.0,0.0002271,2]
[378173987,1754763049355,-300.0,0.0002271,2]
[378173988,1754763049364,-250.0,0.0002271,2]
[378173989,1754763049375,-300.0,0.0002271,2]
[378173990,1754763049388,-250.0,0.0002271,2]
[378173991,1754763049398,-300.0,0.0002271,2]
[378173992,1754763049407,-250.0,0.0002271,2]
[378173993,1754763049416,-250.0,0.0002271,2]
[378173994,1754763049425,-151.0,0.0002271,2]
[378173995,1754763049435,-151.0,0.0002271,2]
[378173996,1754763049444,-151.0,0.0002271,2]
[378173997,1754763049454,-151.0,0.0002271,2]
[378173998,1754763049464,-151.0,0.0002271,2]
[378173999,1754763049474,-151.0,0.0002271,2]
[378174000,1754763049484,-151.0,0.0002271,2]
[378174001,1754763049495,-250.0,0.0002271,2]
[378174002,1754763049505,-151.0,0.0002271,2]
[378174003,1754763049515,-250.0,0.0002271,2]
[378174004,1754763049525,-250.0,0.0002271,2]
[378174005,1754763049534,-151.0,0.0002271,2]
[378174006,1754763049544,-250.0,0.0002271,2]
[378174007,1754763049553,-151.0,0.0002271,2]
[378174008,1754763049563,-250.0,0.0002271,2]
[378174009,1754763049573,-151.0,0.0002271,2]
[378174010,1754763049583,-151.0,0.0002271,2]
[378174011,1754763049593,-151.0,0.0002271,2]
[378174012,1754763049602,-611.52703329,0.00022717,2]
[378174013,1754763049612,-500.0,0.00022717,2]
[378174014,1754763049621,-600.0,0.00022717,2]
[378174015,1754763049631,-500.0,0.00022717,2]
[378174016,1754763049640,-150.0,0.00022736,2]
[378174017,1754763049650,-2264.10087164,0.00022765,2]
[378174018,1754763049659,-500.0,0.00022786,2]
[378174019,1754763049668,-500.0,0.00022786,2]
[378174020,1754763049677,-500.0,0.00022786,2]
[378174021,1754763049687,-155.2313519,0.00022786,2]
[378174022,1754763049696,-500.0,0.00022786,2]
[378174023,1754763049706,-500.0,0.00022786,2]
[378174024,1754763049715,-500.0,0.00022786,2]
[378174025,1754763049726,-500.0,0.00022786,2]
[378174026,1754763049735,-500.0,0.00022786,2]
[378174027,1754763049744,-437.32267485,0.00022786,2]
[378174028,1754763049754,-500.0,0.00022786,2]
[378174029,1754763049763,-500.86414136,0.00022786,2]
[378174030,1754763049773,-500.0,0.00022786,2]
[378174031,1754763049782,-500.11593871,0.000228,2]
[378174032,1754763049792,-500.0,0.000228,2]
[378174033,1754763049801,-500.0,0.000228,2]
[378174034,1754763049817,-500.0,0.000228,2]
[378174035,1754763049826,-500.0,0.000228,2]
[378174036,1754763049835,-2347.87260389,0.0002282,2]
[378174037,1754763049846,-157.250786,0.00022842,7]
[378174038,1754763049855,-153.0,0.0002286,2]
[378174039,1754763049865,-153.0,0.0002286,2]
[378174040,1754763049874,-500.0,0.00022868,2]
[378174041,1754763049884,-550.62267713,0.00022872,2]
[378174042,1754763049893,-2434.74389024,0.00022875,2]
[378174043,1754763049903,-2112.37410056,0.00022878,2]
[378174044,1754763049913,-2394.32,0.00022899,3]
[378174045,1754763049922,-590.28,0.00022906,2]
[378174046,1754763049931,-491.78,0.00022907,2]
[378174047,1754763049940,-1055.33,0.00022907,2]
[378174048,1754763049950,-460.0,0.00022907,2]
[378174049,1754763049959,-460.0,0.00022907,2]
[378174050,1754763049968,-460.0,0.00022907,2]
[378174051,1754763049978,-821.13,0.00022907,2]
[378174052,1754763049991,-1182.0,0.00022908,2]
[378174053,1754763050000,-881.07,0.00022908,2]
[378174054,1754763050010,-460.0,0.00022909,2]
[378174055,1754763050019,-460.0,0.00022909,2]
[378174056,1754763050029,-460.0,0.00022909,2]
[378174057,1754763050038,-460.0,0.00022909,2]
[378174058,1754763050049,-460.0,0.00022909,2]
[378174059,1754763050059,-585.05,0.00022909,2]
[378174060,1754763050068,-460.0,0.0002291,2]
[378174061,1754763050079,-163.65,0.0002291,2]
[378174062,1754763050089,-460.0,0.0002291,2]
[378174063,1754763050098,-460.0,0.0002291,2]
[378174064,1754763050107,-921.51,0.0002291,2]
[378174065,1754763050117,-2422.38,0.0002291,2]
[378174066,1754763050126,-460.0,0.0002291,2]
[378174067,1754763050136,-745.73,0.0002291,2]
[378174068,1754763050146,-688.25,0.0002291,2]
[378174069,1754763050156,-790.22,0.0002291,2]
[378174070,1754763050165,-751.83,0.0002291,2]
[378174071,1754763050175,-529.69,0.0002291,2]
[378174072,1754763050185,-460.0,0.00022911,2]
[378174073,1754763050194,-460.0,0.00022911,2]
[378174074,1754763050204,-663.54,0.00022911,2]
[378174075,1754763050214,-984.81,0.00022911,2]
[378174076,1754763050224,-480.16,0.00022912,2]
[378174077,1754763050233,-2524.82941417,0.0002293,2]
[378174078,1754763050243,-2618.2481025,0.00022985,2]
[378174079,1754763050252,-160.0,0.00023,2]
[378174080,1754763050262,-2715.12328229,0.0002304,2]
[378174081,1754763050272,-2229.05875137,0.00023095,2]
[378174082,1754763050281,-500.0,0.00023111,2]
[378174083,1754763050291,-500.59736898,0.00023111,2]
[378174084,1754763050301,-2898.43393834,0.00023121,2]
[378174085,1754763050314,-151.234569,0.00023125,14]
[378174086,1754763050323,-590.28,0.0002318,2]
[378174087,1754763050333,-491.78,0.00023181,2]
[378174088,1754763050343,-1055.33,0.00023181,2]
[378174089,1754763050353,-460.0,0.00023181,2]
[378174090,1754763050363,-460.0,0.00023181,2]
[378174091,1754763050372,-460.0,0.00023181,2]
[378174092,1754763050381,-821.13,0.00023181,2]
[378174093,1754763050391,-1182.0,0.00023182,2]
[378174094,1754763050401,-881.07,0.00023182,2]
[378174095,1754763050411,-460.0,0.00023183,2]
[378174096,1754763050420,-460.0,0.00023183,2]
[378174097,1754763050429,-460.0,0.00023183,2]
[378174098,1754763050439,-460.0,0.00023183,2]
[378174099,1754763050448,-460.0,0.00023183,2]
[378174100,1754763050457,-585.05,0.00023183,2]
[378174101,1754763050467,-460.0,0.00023184,2]
[378174102,1754763050477,-460.0,0.00023184,2]
[378174103,1754763050486,-460.0,0.00023184,2]
[378174104,1754763050496,-921.51,0.00023184,2]
[378174105,1754763050505,-2422.38,0.00023184,2]
[378174106,1754763050514,-460.0,0.00023184,2]
[378174107,1754763050523,-745.73,0.00023184,2]
[378174108,1754763050533,-688.25,0.00023184,2]
[378174109,1754763050543,-790.22,0.00023184,2]
[378174110,1754763050553,-751.83,0.00023184,2]
[378174111,1754763050562,-529.69,0.00023184,2]
[378174112,1754763050573,-460.0,0.00023185,2]
[378174113,1754763050583,-460.0,0.00023185,2]
[378174114,1754763050593,-663.54,0.00023185,2]
[378174115,1754763050714,-984.81,0.00023185,2]
[378174116,1754763050724,-480.16,0.00023186,2]
[378174117,1754763050734,-151.0,0.000232,9]
[378174118,1754763050743,-500.0,0.00023202,2]
[378174119,1754763050752,-429.32,0.0002323,2]
[378174120,1754763050762,-260.0,0.00023254,2]
[378174121,1754763050772,-250.0,0.00023284,2]
[378174122,1754763050781,-151.234569,0.00023286,2]
[378174123,1754763050790,-500.0,0.00023288,2]
[378174124,1754763050800,-1788.92,0.00023303,2]
[378174125,1754763050809,-1000.0,0.00023334,2]
[378174126,1754763050818,-905.59629683,0.00023334,2]
[378174127,1754763050828,-1000.0,0.00023334,2]
[378174128,1754763050837,-1000.0,0.00023334,2]
[378174129,1754763050847,-1000.0,0.00023334,2]
[378174130,1754763050856,-1027.82257883,0.00023334,2]
[378174131,1754763050866,-1000.0,0.00023334,2]
[378174132,1754763050875,-151.234569,0.00023345,10]
[378174133,1754763050884,-569.97181184,0.00023348,2]
[378174134,1754763050894,-997.63546535,0.00023348,2]
[378174135,1754763050903,-1003.38529828,0.00023348,2]
[378174136,1754763050913,-2112.37410056,0.00023358,2]
[378174137,1754763050922,-151.0,0.000234,9]
[378174138,1754763050932,-420.0,0.00023403,2]
[378174139,1754763050942,-12708.37199802,0.00023409,2]
[378174140,1754763050951,-590.28,0.00023454,2]
[378174141,1754763050961,-491.78,0.00023455,2]
[378174142,1754763050970,-1055.33,0.00023455,2]
[378174143,1754763050979,-460.0,0.00023455,2]
[378174144,1754763050988,-564.43,0.00023455,2]
[378174145,1754763051001,-460.0,0.00023455,2]
[378174146,1754763051011,-821.13,0.00023455,2]
[378174147,1754763051020,-1182.0,0.00023456,2]
[378174148,1754763051030,-881.07,0.00023456,2]
[378174149,1754763051039,-460.0,0.00023457,2]
[378174150,1754763051048,-460.0,0.00023457,2]
[378174151,1754763051058,-460.0,0.00023457,2]
[378174152,1754763051067,-460.0,0.00023457,2]
[378174153,1754763051077,-460.0,0.00023457,2]
[378174154,1754763051086,-585.05,0.00023457,2]
[378174155,1754763051095,-460.0,0.00023458,2]
[378174156,1754763051105,-460.0,0.00023458,2]
[378174157,1754763051115,-460.0,0.00023458,2]
[378174158,1754763051124,-921.51,0.00023458,2]
[378174159,1754763051133,-2422.38,0.00023458,2]
[378174160,1754763051144,-745.73,0.00023458,2]
[378174161,1754763051153,-460.0,0.00023458,2]
[378174162,1754763051162,-688.25,0.00023458,2]
[378174163,1754763051171,-790.22,0.00023458,2]
[378174164,1754763051180,-751.83,0.00023458,2]
[378174165,1754763051189,-529.69,0.00023458,2]
[378174166,1754763051199,-460.0,0.00023459,2]
[378174167,1754763051208,-460.0,0.00023459,2]
[378174168,1754763051217,-663.54,0.00023459,2]
[378174169,1754763051226,-984.81,0.00023459,2]
[378174170,1754763051236,-480.16,0.0002346,2]
[378174171,1754763051245,-500.0,0.00023536,2]
[378174172,1754763051255,-548.49,0.00023556,2]
[378174173,1754763051264,-799.82558569,0.00023606,2]
[378174174,1754763051273,-1421.91215234,0.00023606,2]
[378174175,1754763051282,-2221.73773803,0.00023606,2]
[378174176,1754763051292,-335.40894831,0.00023606,2]
[378174177,1754763051301,-1341.63579326,0.00023606,2]
[378174178,1754763051314,-565.1776878,0.00023606,2]
[378174179,1754763051323,-397.18291316,0.00023606,2]
[378174180,1754763051333,-714.92924369,0.00023606,2]
[378174181,1754763051342,-1270.98532212,0.00023606,2]
[378174182,1754763051351,-1985.91456582,0.00023606,2]
[378174183,1754763051360,-2859.71697478,0.00023606,2]
[378174184,1754763051370,-3892.392549,0.00023606,2]
[378174185,1754763051380,-5083.94128849,0.00023606,2]
[378174186,1754763051391,-6434.36319324,0.00023606,2]
[378174187,1754763051401,-7943.65826326,0.00023606,2]
[378174188,1754763051410,-262.47406611,0.00023606,2]
[378174189,1754763051419,-1048.84636819,0.00023606,2]
[378174190,1754763051428,-268.09872541,0.00023606,2]
[378174191,1754763051438,-1072.39490163,0.00023606,2]
[378174192,1754763051447,-2412.88852866,0.00023606,2]
[378174193,1754763051457,-4289.57960651,0.00023606,2]
[378174194,1754763051466,-6702.46813517,0.00023606,2]
[378174195,1754763051476,-9611.82649855,0.0002365,2]
[378174196,1754763051486,-1000.0,0.00023658,2]
[378174197,1754763051495,-157.0,0.00023673,2]
[378174198,1754763051504,-150.0,0.00023673,2]
[378174199,1754763051515,-150.23222237,0.00023673,2]
[378174200,1754763051524,-150.0,0.00023673,2]
[378174201,1754763051534,-590.28,0.00023728,2]
[378174202,1754763051544,-491.78,0.00023729,2]
[378174203,1754763051553,-1055.33,0.00023729,2]
[378174204,1754763051563,-460.0,0.00023729,2]
[378174205,1754763051572,-460.0,0.00023729,2]
[378174206,1754763051581,-821.13,0.00023729,2]
[378174207,1754763051590,-1182.0,0.0002373,2]
[378174208,1754763051599,-881.07,0.0002373,2]
[378174209,1754763051608,-460.0,0.00023731,2]
[378174210,1754763051617,-460.0,0.00023731,2]
[378174211,1754763051627,-460.0,0.00023731,2]
[378174212,1754763051636,-460.0,0.00023731,2]
[378174213,1754763051646,-460.0,0.00023731,2]
[378174214,1754763051655,-585.05,0.00023731,2]
[378174215,1754763051664,-460.0,0.00023732,2]
[378174216,1754763051674,-460.0,0.00023732,2]
[378174217,1754763051683,-460.0,0.00023732,2]
[378174218,1754763051692,-921.51,0.00023732,2]
[378174219,1754763051701,-2422.38,0.00023732,2]
[378174220,1754763051710,-745.73,0.00023732,2]
[378174221,1754763051719,-460.0,0.00023732,2]
[378174222,1754763051729,-688.25,0.00023732,2]
[378174223,1754763051739,-790.22,0.00023732,2]
[378174224,1754763051748,-751.83,0.00023732,2]
[378174225,1754763051758,-529.69,0.00023732,2]
[378174226,1754763051767,-460.0,0.00023733,2]
[378174227,1754763051776,-460.0,0.00023733,2]
[378174228,1754763051785,-663.54,0.00023733,2]
[378174229,1754763051794,-984.81,0.00023733,2]
[378174230,1754763051804,-480.16,0.00023734,2]
[378174231,1754763051813,-150.52451577,0.00023743,2]
[378174232,1754763051823,-150.0,0.00023743,2]
[378174233,1754763051832,-11427.4290312,0.00023778,2]
[378174234,1754763051841,-9641.90256053,0.00023781,2]
[378174235,1754763051851,-151.0,0.000238,5]
[378174236,1754763051859,-360.0,0.00023801,2]
[378174237,1754763051868,-350.0,0.00023832,2]
[378174238,1754763051878,-151.234569,0.00023833,2]
[378174239,1754763051888,-168.0,0.00023849,2]
[378174240,1754763051898,-1500.0,0.00023882,2]
[378174241,1754763051907,-1000.0,0.00023882,2]
[378174242,1754763051916,-1500.0,0.00023882,2]
[378174243,1754763051925,-1500.0,0.00023882,2]
[378174244,1754763051935,-151.978491,0.00023908,7]
[378174245,1754763051944,-365.64,0.00023924,2]
[378174246,1754763051954,-600.1756036,0.00023948,2]
[378174247,1754763051963,-605.8719077,0.00023948,2]
[378174248,1754763051972,-2421.67142667,0.00023954,2]
[378174249,1754763051981,-502.440993,0.00023966,2]
[378174250,1754763051990,-215.40758176,0.00024,3]
[378174251,1754763052000,-590.28,0.00024002,2]
[378174252,1754763052009,-491.78,0.00024003,2]
[378174253,1754763052019,-1055.33,0.00024003,2]
[378174254,1754763052028,-460.0,0.00024003,2]
[378174255,1754763052038,-460.0,0.00024003,2]
[378174256,1754763052047,-821.13,0.00024003,2]
[378174257,1754763052058,-1182.0,0.00024004,2]
[378174258,1754763052067,-881.07,0.00024004,2]
[378174259,1754763052077,-460.0,0.00024005,2]
[378174260,1754763052087,-460.0,0.00024005,2]
[378174261,1754763052096,-460.0,0.00024005,2]
[378174262,1754763052106,-460.0,0.00024005,2]
[378174263,1754763052115,-460.0,0.00024005,2]
[378174264,1754763052124,-585.05,0.00024005,2]
[378174265,1754763052134,-460.0,0.00024006,2]
[378174266,1754763052145,-460.0,0.00024006,2]
[378174267,1754763052154,-460.0,0.00024006,2]
[378174268,1754763052163,-921.51,0.00024006,2]
[378174269,1754763052172,-2422.38,0.00024006,2]
[378174270,1754763052181,-745.73,0.00024006,2]
[378174271,1754763052192,-460.0,0.00024006,2]
[378174272,1754763052201,-688.25,0.00024006,2]
[378174273,1754763052211,-790.22,0.00024006,2]
[378174274,1754763052220,-751.83,0.00024006,2]
[378174275,1754763052229,-529.69,0.00024006,2]
[378174276,1754763052239,-460.0,0.00024007,2]
[378174277,1754763052248,-460.0,0.00024007,2]
[378174278,1754763052258,-663.54,0.00024007,2]
[378174279,1754763052267,-984.81,0.00024007,2]
[378174280,1754763052276,-384.483872,0.00024008,7]
[378174281,1754763052285,-384.483872,0.00024008,7]
[378174282,1754763052295,-151.0,0.00024008,7]
[378174283,1754763052306,-480.16,0.00024008,2]
[378174284,1754763052316,-2000.0,0.00024011,2]
[378174285,1754763052326,-1088.628,0.00024011,2]
[378174286,1754763052336,-151.234569,0.00024018,10]
[378174287,1754763052345,-151.0,0.00024018,7]
[378174288,1754763052354,-151.0,0.00024018,7]
[378174289,1754763052363,-392.750108,0.00024021,7]
[378174290,1754763052373,-392.750108,0.00024021,7]
[378174291,1754763052383,-151.234569,0.00024044,3]
[378174292,1754763052392,-151.0,0.00024079,2]
[378174293,1754763052402,-200.0,0.00024099,15]
[378174294,1754763052411,-200.0,0.00024099,15]
[378174295,1754763052421,-200.0,0.00024099,15]
[378174296,1754763052430,-200.0,0.00024099,15]
[378174297,1754763052440,-200.0,0.00024099,15]
[378174298,1754763052449,-200.0,0.00024099,15]
[378174299,1754763052459,-200.0,0.00024099,15]
[378174300,1754763052469,-243.37969701,0.00024152,2]
[378174301,1754763052478,-151.234569,0.00024187,14]
[378174302,1754763052488,-1000.0,0.00024206,2]
[378174303,1754763052497,-300.0,0.00024221,2]
[378174304,1754763052507,-548.49,0.00024229,2]
[378174305,1754763052516,-6369.82920172,0.00024241,5]
[378174306,1754763052525,-636.0,0.00024263,2]
[378174307,1754763052535,-2150.0,0.00024263,2]
[378174308,1754763052544,-971.0,0.00024263,2]
[378174309,1754763052553,-590.28,0.00024276,2]
[378174310,1754763052563,-491.78,0.00024277,2]
[378174311,1754763052572,-1055.33,0.00024277,2]
[378174312,1754763052582,-460.0,0.00024277,2]
[378174313,1754763052591,-460.0,0.00024277,2]
[378174314,1754763052600,-821.13,0.00024277,2]
[378174315,1754763052609,-1182.0,0.00024278,2]
[378174316,1754763052618,-881.07,0.00024278,2]
[378174317,1754763052627,-460.0,0.00024279,2]
[378174318,1754763052637,-460.0,0.00024279,2]
[378174319,1754763052648,-460.0,0.00024279,2]
[378174320,1754763052658,-460.0,0.00024279,2]
[378174321,1754763052667,-460.0,0.00024279,2]
[378174322,1754763052676,-585.05,0.00024279,2]
[378174323,1754763052685,-460.0,0.0002428,2]
[378174324,1754763052696,-460.0,0.0002428,2]
[378174325,1754763052705,-460.0,0.0002428,2]
[378174326,1754763052715,-921.51,0.0002428,2]
[378174327,1754763052725,-2422.38,0.0002428,2]
[378174328,1754763052734,-745.73,0.0002428,2]
[378174329,1754763052743,-460.0,0.0002428,2]
[378174330,1754763052753,-688.25,0.0002428,2]
[378174331,1754763052762,-790.22,0.0002428,2]
[378174332,1754763052771,-751.83,0.0002428,2]
[378174333,1754763052781,-529.69,0.0002428,2]